fUST/lending_fUST_20251008
["ID","MTS","AMOUNT","RATE_DAILY","PERIOD"]
[389816298,1759858239059,-500.0,0.00019573,2]
[389816299,1759858239068,-500.0,0.00019573,2]
[389816300,1759858239077,-500.0,0.00019573,2]
[389816301,1759858239086,-500.0,0.00019573,2]
[389816302,1759858239095,-500.0,0.00019573,2]
[389816303,1759858239104,-500.0,0.00019573,2]
[389816304,1759858239114,-500.0,0.00019573,2]
[389816305,1759858239123,-500.0,0.00019573,2]
[389816306,1759858239132,-500.0,0.00019573,2]
[389816307,1759858239142,-500.0,0.00019573,2]
[389816308,1759858239151,-500.0,0.00019573,2]
[389816309,1759858239160,-479.42509122,0.00019573,2]
[389816310,1759858239170,-500.0,0.00019573,2]
[389816311,1759858239180,-500.0,0.00019573,2]
[389816312,1759858239189,-500.0,0.00019573,2]
[389816313,1759858239198,-500.0,0.00019573,2]
[389816314,1759858239207,-500.0,0.00019573,2]
[389816315,1759858239217,-500.0,0.00019573,2]
[389816316,1759858239230,-420.0,0.00019603,2]
[389816317,1759858239239,-8176.89540992,0.000197,2]
[389816318,1759858239249,-311.9834304,0.00019711,2]
[389816319,1759858239258,-1804.32425582,0.00019747,2]
[389816320,1759858239267,-3743.58341087,0.000198,2]
[389816321,1759858239276,-500.0,0.00019847,2]
[389816322,1759858239286,-600.0,0.00019852,2]
[389816323,1759858239295,-8176.89540992,0.000199,2]
[389816324,1759858239304,-174.684,0.0002,2]
[389816325,1759858239313,-151.0,0.0002,3]
[389816326,1759858239322,-151.0,0.0002,4]
[389816327,1759858239331,-234.05807603,0.0002,2]
[389816328,1759858239340,-14517.33720406,0.0002,2]
[389816329,1759858239350,-44029.03033243,0.0002,20]
[389816330,1759858239359,-366.95511062,0.0002,2]
[389816331,1759858239368,-23000.0,0.0002,2]
[389816332,1759858239377,-17574.71196574,0.0002,2]
[389816333,1759858239386,-180.03240583,0.00020011,2]
[389816334,1759858239395,-1804.32425582,0.00020021,2]
[389816335,1759858239404,-8176.89540992,0.000201,2]
[389816336,1759858239413,-1000.0,0.00020121,2]
[389816337,1759858239422,-412.11204663,0.00020121,2]
[389816338,1759858239434,-1000.0,0.00020121,2]
[389816339,1759858239444,-1000.0,0.00020121,2]
[389816340,1759858239456,-1000.0,0.00020121,2]
[389816341,1759858239466,-1000.0,0.00020121,2]
[389816342,1759858239475,-1000.0,0.00020121,2]
[389816343,1759858239484,-1000.0,0.00020121,2]
[389816344,1759858239494,-1000.0,0.00020121,2]
[389816345,1759858239503,-1000.0,0.00020121,2]
[389816346,1759858239514,-1000.0,0.00020121,2]
[389816347,1759858239524,-1000.0,0.00020121,2]
[389816348,1759858239533,-1000.0,0.00020121,2]
[389816349,1759858239542,-1081.06423246,0.00020121,2]
[389816350,1759858239551,-1000.75919098,0.00020121,2]
[389816351,1759858239560,-1000.0,0.00020121,2]
[389816352,1759858239569,-1000.0,0.00020121,2]
[389816353,1759858239579,-1000.0,0.00020121,2]
[389816354,1759858239587,-1000.0,0.00020121,2]
[389816355,1759858239597,-1000.0,0.00020121,2]
[389816356,1759858239606,-1000.0,0.00020121,2]
[389816357,1759858239615,-1000.0,0.00020121,2]
[389816358,1759858239625,-1000.0,0.00020121,2]
[389816359,1759858239634,-1000.0,0.00020121,2]
[389816360,1759858239643,-1000.0,0.00020121,2]
[389816361,1759858239653,-1000.0,0.00020121,2]
[389816362,1759858239662,-1000.0,0.00020121,2]
[389816363,1759858239672,-1000.0,0.00020121,2]
[389816364,1759858239683,-506.51789788,0.00020121,2]
[389816365,1759858239692,-500.0,0.00020121,2]
[389816366,1759858239701,-160.0,0.00020125,2]
[389816367,1759858239711,-346.0,0.00020155,2]
[389816368,1759858239720,-677.362601,0.00020187,2]
[389816369,1759858239729,-1804.32425582,0.00020294,2]
[389816370,1759858239741,-8176.89540992,0.000203,2]
[389816371,1759858239750,-347.98151853,0.00020311,2]
[389816372,1759858239759,-500.0,0.00020395,2]
[389816373,1759858239768,-8176.89540992,0.000205,2]
[389816374,1759858239779,-261.11331394,0.00020521,3]
[389816375,1759858239789,-1804.32425582,0.00020568,2]
[389816376,1759858239798,-151.0,0.000206,3]
[389816377,1759858239807,-151.0,0.000206,3]
[389816378,1759858239819,-1372.26531713,0.0002061,2]
[389816379,1759858239828,-1500.0,0.00020668,2]
[389816380,1759858239838,-1500.0,0.00020668,2]
[389816381,1759858239848,-1500.0,0.00020668,2]
[389816382,1759858239857,-1082.52253514,0.00020668,2]
[389816383,1759858239867,-1500.0,0.00020668,2]
[389816384,1759858239876,-1437.58555441,0.00020668,2]
[389816385,1759858239885,-1500.0,0.00020668,2]
[389816386,1759858239895,-1500.0,0.00020668,2]
[389816387,1759858239905,-1500.0,0.00020668,2]
[389816388,1759858239914,-1500.0,0.00020668,2]
[389816389,1759858239923,-1500.0,0.00020668,2]
[389816390,1759858239932,-1500.0,0.00020668,2]
[389816391,1759858239941,-1500.0,0.00020668,2]
[389816392,1759858239950,-1128.18149537,0.00020668,2]
[389816393,1759858239960,-1500.0,0.00020668,2]
[389816394,1759858239969,-1500.0,0.00020668,2]
[389816395,1759858239979,-1500.0,0.00020668,2]
[389816396,1759858239987,-1500.0,0.00020668,2]
[389816397,1759858239997,-1500.0,0.00020668,2]
[389816398,1759858240006,-1500.0,0.00020668,2]
[389816399,1759858240015,-403.0854996,0.00020668,2]
[389816400,1759858240024,-500.0,0.00020668,2]
[389816401,1759858240033,-260.0,0.00020673,2]
[389816402,1759858240043,-8176.89540992,0.000207,2]
[389816403,1759858240053,-7487.16682175,0.00020715,2]
[389816404,1759858240062,-5078.30529845,0.0002081,2]
[389816405,1759858240071,-969.08,0.0002087,3]
[389816406,1759858240080,-484.54,0.0002087,3]
[389816407,1759858240089,-39.67945929,0.000209,2]
[389816409,1759858240102,-8137.21595063,0.000209,2]
[389816411,1759858240113,-253.09677656,0.000209,2]
[389816412,1759858240121,-383.97960665,0.00020911,2]
[389816413,1759858240131,-207.10766624,0.00021,2]
[389816453,1759858241033,-5000.0,0.00018694,2]
[389816454,1759858241043,-1792.89233376,0.00021,2]
[389816455,1759858241052,-2646.95890792,0.00021,5]
[389816456,1759858241085,-2167.04999998,0.00021,5]
[389816457,1759858241097,-2062.76,0.00021,5]
[389816504,1759858244107,-1608.865295,0.00021,5]
[389816766,1759858246714,-1514.3657971,0.00021,5]
[389816768,1759858246724,-273.56835318,0.00021,2]
[389816770,1759858246738,-524.9888995,0.00021,10]
[389816772,1759858246751,-801.999998,0.00021,2]
[389816774,1759858246761,-204.65924008,0.00021,2]
[389816776,1759858246771,-8176.89540992,0.000211,2]
[389816778,1759858246783,-151.0,0.000211,3]
[389816780,1759858246792,-151.0,0.000211,4]
[389816782,1759858246802,-2499.99999902,0.000212,2]
[389816784,1759858246812,-644.33892563,0.00021216,2]
[389816786,1759858246822,-500.0,0.00021216,2]
[389816788,1759858246832,-2000.0,0.00021216,2]
[389816790,1759858246842,-500.0,0.00021216,2]
[389816792,1759858246852,-500.0,0.00021216,2]
[389816794,1759858246862,-500.0,0.00021216,2]
[389816796,1759858246871,-2000.0,0.00021216,2]
[389816798,1759858246881,-500.0,0.00021216,2]
[389816800,1759858246890,-500.0,0.00021216,2]
[389816802,1759858246900,-500.0,0.00021216,2]
[389816805,1759858246910,-2000.0,0.00021216,2]
[389816807,1759858246919,-500.0,0.00021216,2]
[389816809,1759858246929,-500.0,0.00021216,2]
[389816811,1759858246939,-303.64605075,0.00021216,2]
[389816813,1759858246949,-2000.0,0.00021216,2]
[389816815,1759858246959,-2000.0,0.00021216,2]
[389816817,1759858246970,-2000.0,0.00021216,2]
[389816819,1759858246979,-360.0,0.00021221,2]
[389816821,1759858246988,-8176.89540992,0.000213,2]
[389816823,1759858246998,-587.0,0.00021389,2]
[389816825,1759858247008,-158.104545,0.00021391,2]
[389816827,1759858247018,-12685.86082688,0.000215,2]
[389816829,1759858247027,-419.97769477,0.00021511,2]
[389816831,1759858247036,-168.01695144,0.00021583,2]
[389816834,1759858247046,-151.0,0.000216,4]
[389816836,1759858247055,-402.02512307,0.00021652,2]
[389816838,1759858247065,-151.0,0.000217,4]
[389816840,1759858247075,-2500.0,0.00021764,2]
[389816842,1759858247085,-2500.0,0.00021764,2]
[389816844,1759858247094,-2500.0,0.00021764,2]
[389816846,1759858247103,-2500.0,0.00021764,2]
[389816848,1759858247113,-2500.0,0.00021764,2]
[389816850,1759858247122,-2569.27703144,0.00021764,2]
[389816852,1759858247132,-460.0,0.00021769,2]
[389816854,1759858247141,-502.07208839,0.00021786,2]
[389816856,1759858247150,-720.0,0.00021837,20]
[389816858,1759858247159,-500.0,0.00021839,2]
[389816859,1759858247169,-19361.94710176,0.0002196,2]
[389816862,1759858247178,-36953.97279197,0.00021988,2]
[389816864,1759858247190,-2000.0,0.00022,2]
[389816866,1759858247199,-93878.69263168,0.00022,5]
[389818760,1759858276270,-497.7463583,0.00019272,2]
[389818767,1759858766774,500.0,0.00024068,120]
[389818769,1759858767545,500.0,0.00024068,120]
[389818770,1759858768414,500.0,0.00024068,120]
[389818771,1759858769152,500.0,0.00024068,120]
[389818772,1759858769912,500.0,0.00024068,120]
[389818773,1759858770724,500.0,0.00024068,120]
[389818774,1759858771516,500.0,0.00024068,120]
[389818775,1759858772327,500.0,0.00024068,120]
[389818776,1759858773135,500.0,0.00024068,120]
[389818777,1759858773902,500.0,0.00024068,120]
[389818778,1759858774710,500.0,0.00024068,120]
[389818779,1759858776124,500.0,0.00024068,120]
[389818780,1759858776353,500.0,0.00024068,120]
[389818781,1759858777128,500.0,0.00024068,120]
[389818782,1759858777898,500.0,0.00024068,120]
[389818783,1759858778709,500.0,0.00024068,120]
[389818784,1759858779515,500.0,0.00024068,120]
[389818785,1759858780448,500.0,0.00024068,120]
[389818786,1759858781194,500.0,0.00024068,120]
[389818787,1759858781958,500.0,0.00024068,120]
[389818788,1759858782721,500.0,0.00024068,120]
[389818789,1759858783481,500.0,0.00024068,120]
[389818790,1759858784442,500.0,0.00024068,120]
[389818791,1759858785243,500.0,0.00024068,120]
[389818792,1759858786010,500.0,0.00024068,120]
[389818793,1759858786779,500.0,0.00024068,120]
[389818794,1759858787588,500.0,0.00024068,120]
[389818795,1759858788347,500.0,0.00024068,120]
[389818796,1759858789183,500.0,0.00024068,120]
[389818797,1759858790057,500.0,0.00024068,120]
[389818798,1759858790775,500.0,0.00024068,120]
[389818799,1759858791540,500.0,0.00024068,120]
[389818800,1759858792298,500.0,0.00024068,120]
[389818801,1759858793159,500.0,0.00024068,120]
[389818802,1759858793966,500.0,0.00024068,120]
[389818803,1759858794794,500.0,0.00024068,120]
[389818804,1759858795564,500.0,0.00024068,120]
[389818805,1759858796397,500.0,0.00024068,120]
[389818806,1759858797207,500.0,0.00024068,120]
[389818807,1759858798002,500.0,0.00024068,120]
[389818808,1759858798807,460.44,0.00024068,120]
[389818810,1759858822057,5000.0,0.000196,14]
[389818811,1759858823252,5985.27762,0.00017,2]
[389818812,1759858823275,10000.01,0.00017,2]
[389818813,1759858823299,10000.01,0.00017,2]
[389818814,1759858823323,10000.01,0.00017,2]
[389818815,1759858823348,7826.70291298,0.00017,2]
[389818816,1759858831030,200.0,0.00026236,120]
[389818817,1759858838651,5000.0,0.000196,14]
[389818818,1759858838772,154.0,0.00024,120]
[389818819,1759858840318,154.0,0.000257,120]
[389818820,1759858841527,154.0,0.000274,120]
[389818821,1759858846304,5000.0,0.000196,14]
[389818822,1759858847777,749.0,0.00021929,120]
[389818823,1759858848136,731.0,0.00021929,120]
[389818824,1759858848224,749.0,0.00021919,120]
[389818825,1759858848949,731.0,0.00021919,120]
[389818826,1759858848989,749.0,0.00021909,120]
[389818827,1759858849178,749.0,0.00025431,120]
[389818829,1759858849231,731.0,0.00021909,120]
[389818830,1759858849538,749.0,0.00025421,120]
[389818831,1759858849661,731.0,0.00025431,120]
[389818832,1759858849992,749.0,0.00025411,120]
[389818833,1759858850743,749.0,0.0002739,120]
[389818834,1759858851190,749.0,0.0002738,120]
[389818835,1759858852292,731.0,0.00025421,120]
[389818836,1759858852732,731.0,0.00025411,120]
[389818837,1759858853166,731.0,0.0002739,120]
[389818838,1759858853610,731.0,0.0002738,120]
[389818839,1759858861479,1000.0,0.00027397,120]
[389818840,1759858861727,5000.0,0.000196,14]
[389818843,1759858870110,4281.30197909,0.000196,14]
[389818844,1759858891152,200.0,0.00024067,120]
[389818845,1759858897642,550.0,0.000273,120]
[389818846,1759858918210,500.0,0.00028767,120]
[389818847,1759858951238,200.0,0.00027702,120]
[389818848,1759858951653,1500.0,0.00028767,120]
[389818849,1759858976691,1000.0,0.00028767,120]
[389818850,1759859010599,1000.0,0.00028767,120]
[389818851,1759859065042,5000.0,0.000196,14]
[389818852,1759859072854,5000.0,0.000196,14]
[389818853,1759859082347,5000.0,0.000196,14]
[389818854,1759859090229,5000.0,0.000196,14]
[389818855,1759859106208,5000.0,0.00017244,2]
[389818856,1759859114199,5000.0,0.00017244,2]
[389818857,1759859129070,0.01,0.00017244,2]
[389818858,1759859129093,4999.99,0.00017244,2]
[389818859,1759859137426,5000.0,0.00017244,2]
[389818860,1759859152784,0.02,0.00017244,2]
[389818861,1759859152807,4999.98,0.00017244,2]
[389818862,1759859160591,5000.0,0.00017244,2]
[389818863,1759859176088,0.03,0.00017244,2]
[389818864,1759859176111,4999.97,0.00017244,2]
[389818865,1759859183131,1000.0,0.00027397,120]
[389818866,1759859184151,5000.0,0.00017244,2]
[389818867,1759859191766,200.0,0.00025393,120]
[389818868,1759859198622,5000.0,0.00017244,2]
[389818869,1759859206638,0.01,0.00017244,2]
[389818870,1759859206661,4999.99,0.00017244,2]
[389818871,1759859209142,150.5,0.00021924,120]
[389818872,1759859209392,150.5,0.00021914,120]
[389818873,1759859209831,150.5,0.00021904,120]
[389818874,1759859210292,150.5,0.0002539,120]
[389818875,1759859210709,150.5,0.0002538,120]
[389818876,1759859211154,150.5,0.0002537,120]
[389818877,1759859211604,150.5,0.0002739,120]
[389818878,1759859212056,150.5,0.0002738,120]
[389818879,1759859221573,5000.0,0.00017244,2]
[389818880,1759859229462,5000.0,0.00017244,2]
[389818881,1759859244316,5000.0,0.00017244,2]
[389818882,1759859251222,200.0,0.00024018,120]
[389818883,1759859252112,5000.0,0.00017244,2]
[389818884,1759859267033,5000.0,0.00017244,2]
[389818885,1759859274944,5000.0,0.00017244,2]
[389818888,1759859283704,5000.0,0.00017244,2]
[389818889,1759859299530,0.01,0.00017244,2]
[389818890,1759859299552,3864.32068455,0.00017244,2]
[389818891,1759859307265,4957.711241,0.00017244,2]
[389818892,1759859311426,200.0,0.00025218,120]
[389818908,1759859431300,200.0,0.00028333,120]
[389818930,1759859432057,-500.0,0.00017435,2]
[389818932,1759859432069,-2182.75889568,0.00017435,2]
[389818937,1759859432113,-2000.48799593,0.00017435,2]
[389818939,1759859432125,-316.75310839,0.00017435,2]
[389818941,1759859432134,-223.75909959,0.00017611,2]
[389818943,1759859432143,-666.0,0.00017668,2]
[389818945,1759859432153,-1000.0,0.00017789,2]
[389818947,1759859432163,-397.6082069,0.00017846,2]
[389818949,1759859432171,-292.02407128,0.00017851,2]
[389818950,1759859432180,-257.32296452,0.00018211,2]
[389818951,1759859432189,-1200.0,0.00018325,2]
[389818952,1759859432198,-300.0,0.00018698,2]
[389818953,1759859432208,-300.0,0.00018698,2]
[389818954,1759859432216,-46.53254932,0.00018698,2]
[389818956,1759859432252,-253.46745068,0.00018698,2]
[389818958,1759859432262,-300.0,0.00018698,2]
[389818960,1759859432272,-300.0,0.00018698,2]
[389818962,1759859432282,-1200.0,0.00018699,2]
[389818964,1759859432292,-158.15,0.00018699,2]
[389818966,1759859432302,-154.75935798,0.000187,2]
[389818967,1759859432312,-154.75935798,0.000187,2]
[389818968,1759859432323,-154.75935798,0.000187,2]
[389818969,1759859432334,-232.01501932,0.00018789,2]
[389818970,1759859432344,-290.88682946,0.00018811,2]
[389818971,1759859432354,-1635.05901122,0.00018872,2]
[389818972,1759859432363,-500.0,0.00018873,2]
[389818973,1759859432372,-412.11204663,0.00018873,2]
[389818974,1759859432381,-500.0,0.00018873,2]
[389818975,1759859432390,-500.0,0.00018873,2]
[389818976,1759859432398,-500.0,0.00018873,2]
[389818977,1759859432407,-500.0,0.00018873,2]
[389818978,1759859432416,-500.0,0.00018873,2]
[389818979,1759859432425,-156.07019202,0.00018873,2]
[389818980,1759859432436,-343.92980798,0.00018873,2]
[389818981,1759859432445,-12.58746266,0.00018873,2]
[389819290,1759859437945,-487.41253734,0.00018873,2]
[389819292,1759859437955,-500.0,0.00018873,2]
[389819295,1759859437965,-500.0,0.00018873,2]
[389819296,1759859437975,-500.0,0.00018873,2]
[389819298,1759859437986,-500.0,0.00018873,2]
[389819300,1759859437999,-500.0,0.00018873,2]
[389819302,1759859438010,-500.0,0.00018873,2]
[389819304,1759859438019,-506.51789788,0.00018873,2]
[389819306,1759859438029,-500.0,0.00018873,2]
[389819308,1759859438045,-500.0,0.00018873,2]
[389819310,1759859438054,-151.0,0.00018879,2]
[389819312,1759859438063,-151.0,0.00018879,2]
[389819314,1759859438073,-151.0,0.00018879,2]
[389819316,1759859438083,-151.0,0.00018879,2]
[389819318,1759859438093,-151.0,0.00018879,2]
[389819320,1759859438103,-151.0,0.00018879,2]
[389819322,1759859438113,-151.0,0.00018879,2]
[389819324,1759859438125,-151.0,0.00018879,2]
[389819326,1759859438135,-151.0,0.00018879,2]
[389819328,1759859438145,-151.0,0.00018879,2]
[389819330,1759859438156,-488.495,0.00018879,2]
[389819332,1759859438166,-2000.0,0.00018879,2]
[389819334,1759859438177,-2000.0,0.00018879,2]
[389819336,1759859438188,-1794.939,0.00018879,2]
[389819338,1759859438202,-571.98,0.0001888,3]
[389819340,1759859438212,-285.99,0.0001888,3]
[389819342,1759859438223,-857.97,0.0001888,3]
[389819344,1759859438233,-680.01,0.0001888,3]
[389819346,1759859438246,-226.67,0.0001888,3]
[389819348,1759859438256,-500.0,0.00018887,2]
[389819350,1759859438266,-500.0,0.00018887,2]
[389819352,1759859438277,-500.0,0.00018887,2]
[389819354,1759859438286,-500.0,0.00018887,2]
[389819356,1759859438296,-500.0,0.00018887,2]
[389819357,1759859438307,-500.0,0.00018889,2]
[389819359,1759859438321,-167.46717643,0.00018889,2]
[389819364,1759859438355,-360.53672087,0.00018889,2]
[389819366,1759859438365,-25.2859759,0.00018889,2]
[389819368,1759859438377,-198.97836955,0.00018889,2]
[389819370,1759859438387,-284.72615877,0.00018889,2]
[389819372,1759859438398,-405.34020827,0.0001889,2]
[389819374,1759859438410,-2858.41835692,0.0001889,2]
[389819525,1759859439928,-8877.38532979,0.0001889,2]
[389819528,1759859439939,-683.25000001,0.0001889,2]
[389819777,1759859443013,-500.0,0.00018887,2]
[389819779,1759859443023,-280.01955561,0.00018887,2]
[389819781,1759859443033,-500.0,0.00018887,2]
[389819783,1759859443044,-500.0,0.00018887,2]
[389819785,1759859443054,-504.38265207,0.00018887,2]
[389819787,1759859443064,-500.0,0.00018887,2]
[389819789,1759859443074,-500.0,0.00018887,2]
[389819791,1759859443086,-500.0,0.00018887,2]
[389819793,1759859443096,-500.0,0.00018887,2]
[389819795,1759859443106,-500.0,0.00018887,2]
[389819797,1759859443115,-500.0,0.00018887,2]
[389819799,1759859443126,-500.0,0.00018887,2]
[389819801,1759859443136,-500.0,0.00018887,2]
[389819803,1759859443145,-500.0,0.00018887,2]
[389819805,1759859443155,-500.0,0.00018887,2]
[389819807,1759859443164,-500.0,0.00018887,2]
[389819809,1759859443174,-500.0,0.00018887,2]
[389819811,1759859443183,-500.0,0.00018887,2]
[389819813,1759859443192,-500.0,0.00018887,2]
[389819815,1759859443202,-285.62216497,0.00018887,2]
[389819817,1759859443211,-500.0,0.00018887,2]
[389819819,1759859443220,-500.0,0.00018887,2]
[389819821,1759859443230,-500.0,0.00018887,2]
[389819822,1759859443239,-500.0,0.00018887,2]
[389819823,1759859443249,-500.0,0.00018887,2]
[389819824,1759859443258,-500.0,0.00018887,2]
[389819825,1759859443267,-500.0,0.00018887,2]
[389819826,1759859443275,-500.0,0.00018887,2]
[389819827,1759859443285,-500.0,0.00018887,2]
[389819828,1759859443294,-500.0,0.00018887,2]
[389819829,1759859443303,-500.0,0.00018887,2]
[389819830,1759859443312,-500.0,0.00018887,2]
[389819832,1759859443321,-500.0,0.00018887,2]
[389819833,1759859443330,-500.0,0.00018887,2]
[389819834,1759859443340,-500.0,0.00018887,2]
[389819835,1759859443350,-500.0,0.00018887,2]
[389819836,1759859443360,-500.0,0.00018887,2]
[389819837,1759859443369,-53461.3134525,0.0001889,2]
[389819841,1759859443400,5000.0,0.000196,14]
[389819989,1759859446008,-500.0,0.00018887,2]
[389819991,1759859446018,-192.25170984,0.0001889,2]
[389819996,1759859446063,-295.13886484,0.0001889,2]
[389820161,1759859465370,5000.0,0.000196,14]
[389820162,1759859495059,200.0,0.00023817,120]
[389820163,1759859504240,1000.0,0.00027397,120]
[389820164,1759859551391,200.0,0.00028664,120]
[389820165,1759859568980,150.5,0.00021941,120]
[389820166,1759859569809,151.4,0.00021931,120]
[389820167,1759859569842,150.5,0.00021941,120]
[389820168,1759859569966,150.5,0.00021931,120]
[389820169,1759859570705,150.5,0.00021921,120]
[389820170,1759859571178,150.5,0.0002539,120]
[389820171,1759859571615,150.5,0.0002538,120]
[389820172,1759859572067,150.5,0.0002537,120]
[389820173,1759859572507,150.5,0.0002739,120]
[389820174,1759859572968,150.5,0.0002738,120]
[389820175,1759859611359,200.0,0.00026325,120]
[389820176,1759859671809,200.0,0.00026659,120]
[389820177,1759859679273,5000.0,0.000196,14]
[389820178,1759859731378,200.0,0.00025132,120]
[389820179,1759859741721,780.3677158,0.00028767,120]
[389820180,1759859791831,200.0,0.00028607,120]
[389820181,1759859797343,5000.0,0.00028767,120]
[389820182,1759859842693,3000.0,0.00028767,120]
[389820183,1759859853703,3048.13495016,0.00028767,120]
[389820184,1759859894119,5000.0,0.000196,14]
[389820185,1759859917180,5000.0,0.000196,14]
[389820186,1759859966429,978.0,0.00028767,120]
[389820187,1759859967351,494.79948178,0.00027767,120]
[389820188,1759859971315,200.0,0.00024236,120]
[389820189,1759860031354,200.0,0.00025765,120]
[389820191,1759860124805,1000.0,0.00027397,120]
[389820192,1759860129881,5000.0,0.000196,14]
[389820206,1759860138140,5000.0,0.000196,14]
[389820207,1759860289421,266.09,0.00021957,120]
[389820208,1759860346057,2844.16761893,0.000196,14]
[389820209,1759860354192,3746.28849,0.000196,14]
[389820211,1759860362375,-300.01312127,0.00017683,2]
[389820216,1759860432712,1595.5507183,0.00027397,120]
[389820217,1759860439188,-841.48596873,0.00017683,2]
[389820218,1759860439208,-208.31972171,0.00017947,2]
[389820219,1759860439227,-1200.0,0.00018126,2]
[389820220,1759860439246,-300.0,0.00018127,2]
[389820221,1759860439265,-300.0,0.00018127,2]
[389820222,1759860439285,-300.0,0.00018127,2]
[389820223,1759860439305,-300.0,0.00018127,2]
[389820224,1759860439328,-200.0,0.00018312,2]
[389820225,1759860439350,-480.0,0.00018356,2]
[389820226,1759860439369,-239.56767997,0.00018547,2]
[389820227,1759860439390,-151.0,0.000187,2]
[389820228,1759860439409,-1200.0,0.00018772,2]
[389820229,1759860439429,-300.0,0.00018772,2]
[389820230,1759860439448,-500.0,0.00018773,2]
[389820231,1759860439466,-500.0,0.00018773,2]
[389820232,1759860439484,-500.0,0.00018773,2]
[389820233,1759860439502,-500.0,0.00018773,2]
[389820234,1759860439521,-500.0,0.00018773,2]
[389820235,1759860439541,-500.0,0.00018773,2]
[389820236,1759860439561,-500.0,0.00018773,2]
[389820237,1759860439579,-500.0,0.00018773,2]
[389820238,1759860439601,-500.0,0.00018773,2]
[389820239,1759860439623,-500.0,0.00018773,2]
[389820240,1759860439644,-500.0,0.00018773,2]
[389820241,1759860439664,-500.0,0.00018773,2]
[389820242,1759860439683,-500.0,0.00018773,2]
[389820243,1759860439702,-500.0,0.00018773,2]
[389820244,1759860439721,-500.0,0.00018773,2]
[389820245,1759860439741,-581.06423246,0.00018773,2]
[389820246,1759860439761,-500.0,0.00018773,2]
[389820247,1759860439780,-500.0,0.00018773,2]
[389820248,1759860439800,-500.0,0.00018773,2]
[389820249,1759860439819,-500.0,0.00018773,2]
[389820250,1759860439839,-500.0,0.00018773,2]
[389820251,1759860439860,-500.0,0.00018773,2]
[389820252,1759860439879,-1308.047209,0.0001878,2]
[389820253,1759860439898,-500.0,0.00018789,2]
[389820254,1759860439917,-500.0,0.00018789,2]
[389820255,1759860439938,-392.19904351,0.00018789,2]
[389820256,1759860439958,-339.15205264,0.00018789,2]
[389820257,1759860439976,-500.0,0.00018789,2]
[389820258,1759860439996,-500.0,0.00018789,2]
[389820259,1759860440015,-450.52229685,0.00018789,2]
[389820260,1759860440035,-500.0,0.00018789,2]
[389820261,1759860440286,-500.0,0.00018789,2]
[389820262,1759860440331,-500.0,0.00018789,2]
[389820263,1759860440354,-500.0,0.00018789,2]
[389820264,1759860440373,-500.0,0.00018789,2]
[389820265,1759860440395,-628.5622165,0.00018789,2]
[389820266,1759860440416,-500.0,0.00018789,2]
[389820267,1759860440436,-500.0,0.00018789,2]